bitfinex/quotes_SOLUSD_20250722
["timestamp","ask_amount","ask_price","bid_price","bid_amount"]
[1753150277527,0.71,203.26,203.17,26.0]
[1753150277751,0.71,203.26,203.16,4.92222878]
[1753150278153,28.41848934,203.25,203.14,4.92253481]
[1753150278460,38.59,203.24,203.19,11.63380537]
[1753150278632,0.65,203.23,203.19,11.63380537]
[1753150278831,0.65,203.22,203.19,11.63380537]
[1753150279341,12.28380537,203.21,203.14,11.63380537]
[1753150279537,0.65,203.2,203.14,11.63380537]
[1753150280331,5.57128029,203.2,203.14,11.63380537]
[1753150281041,17.20508566,203.2,203.13,11.63380537]
[1753150281561,28.41848934,203.18,203.11,1.15034004]
[1753150281862,28.41848934,203.15,203.11,1.15034004]
[1753150282161,0.65,203.14,203.11,1.15034004]
[1753150282363,4.92295574,203.13,203.11,1.15034004]
[1753150282653,0.65,203.12,203.02,0.53]
[1753150282859,37.92,203.11,203.07,11.63380537]
[1753150283163,38.57,203.11,203.07,11.63380537]
[1753150283662,42.84346136,203.11,203.06,11.63380537]
[1753150283845,37.92,203.11,203.08,11.63380537]
[1753150284052,37.92,203.11,203.02,0.53]
[1753150284233,0.65,203.1,203.05,11.63380537]
[1753150284439,0.65,203.09,203.04,11.63380537]
[1753150284647,0.65,203.09,203.05,11.63380537]
[1753150284847,0.65,203.09,203.04,11.63380537]
[1753150285179,0.65,203.08,203.03,11.63380537]
[1753150285359,0.65,203.07,203.04,11.63380537]
[1753150285660,4.92610837,203.0,202.92,1.15141714]
[1753150285866,38.57,202.99,202.91,0.03]
[1753150286033,11.63380537,202.95,202.91,0.03]
[1753150286236,16.78468397,202.98,202.91,0.03]
[1753150286237,49.55380537,202.94,202.91,0.03]
[1753150286567,28.41848934,202.92,202.91,0.03]
[1753150286862,16.78468397,202.91,202.87,0.03]
[1753150287068,11.63380537,202.88,202.87,0.03]
[1753150287354,66.33848934,202.88,202.87,0.03]
[1753150287556,16.78468397,202.87,202.86,0.03]
[1753150287734,33.99775438,202.87,202.86,0.03]
[1753150287932,22.36394901,202.87,202.86,0.03]
[1753150288150,71.91775438,202.87,202.86,0.03]
[1753150290649,60.28394901,202.87,202.86,0.03]
[1753150290949,71.91775438,202.87,202.86,0.03]
[1753150291348,84.24091699,202.87,202.77,0.03]
[1753150291675,28.41848934,202.83,202.77,0.03]
[1753150291968,0.65,202.86,202.78,11.63380537]
[1753150292147,38.57,202.83,202.78,11.63380537]
[1753150292345,66.98848934,202.83,202.77,0.03]
[1753150292643,11.63380537,202.85,202.78,11.63380537]
[1753150292851,37.92,202.84,202.78,11.63380537]
[1753150293150,38.57,202.84,202.78,11.63380537]
[1753150293347,3.063844,202.88,202.83,11.63380537]
[1753150293551,50.20380537,202.87,202.77,0.03]
[1753150293844,38.57,202.87,202.81,11.63380537]
[1753150294046,0.65,202.86,202.81,11.63380537]
[1753150294450,17.43468397,202.85,202.77,11.66380537]
[1753150294647,16.78468397,202.83,202.77,11.66380537]
[1753150294869,37.92,202.83,202.79,11.63380537]
[1753150295167,37.92,202.83,202.82,11.66380537]
[1753150295469,37.92,202.86,202.82,12.25380537]
[1753150295669,37.92,202.88,202.85,11.63380537]
[1753150295839,37.92,202.88,202.83,0.59]
[1753150296043,37.92,202.88,202.85,11.63380537]
[1753150296255,7.33759264,202.91,202.85,11.63380537]
[1753150296455,37.92,202.9,202.86,11.63380537]
[1753150296657,37.92,202.89,202.88,11.63380537]
[1753150296855,37.92,202.89,202.87,11.63380537]
[1753150297069,37.92,202.89,202.86,11.63380537]
[1753150297271,37.92,202.89,202.85,11.63380537]
[1753150297477,37.92,202.89,202.88,11.63380537]
[1753150297675,16.78468397,202.96,202.88,12.22380537]
[1753150297877,12.28380537,203.02,202.95,11.63380537]
[1753150298183,37.92,203.01,202.95,11.63380537]
[1753150298381,49.55380537,203.01,202.95,11.63380537]
[1753150298583,49.55380537,203.01,202.88,0.59]
[1753150298584,29.09848934,203.0,202.88,0.59]
[1753150298786,11.63380537,202.99,202.93,11.63380537]
[1753150299777,4.92659375,202.98,202.93,11.63380537]
[1753150299979,0.68,203.02,202.96,11.63380537]
[1753150300291,54.70468397,203.01,202.95,11.63380537]
[1753150300455,54.70468397,203.01,202.96,11.63380537]
[1753150300856,0.68,203.0,202.94,11.63380537]
[1753150301662,5.60614056,203.0,202.95,11.63380537]
[1753150302283,37.92,203.01,202.98,11.63380537]
[1753150302693,0.68,203.05,203.0,11.63380537]
[1753150302888,55.36468397,203.04,202.95,0.59]
[1753150303184,0.68,203.04,202.98,11.63380537]
[1753150303381,37.9,203.03,202.98,11.63380537]
[1753150303558,17.46468397,203.02,202.91,31.51829333]
[1753150303762,4.92586572,203.01,202.96,11.63380537]
[1753150303958,17.46468397,203.0,202.91,0.59]
[1753150304185,16.78468397,202.98,202.91,0.59]
[1753150304386,16.78468397,202.98,202.93,11.63380537]
[1753150304581,17.46468397,202.98,202.93,11.63380537]
[1753150304986,0.68,202.98,202.93,11.63380537]
[1753150305194,37.9,202.99,202.9,4.92842788]
[1753150305195,37.9,202.99,202.97,11.63380537]
[1753150305685,37.9,202.99,202.96,11.63380537]
[1753150306263,42.8264069,202.99,202.95,11.63380537]
[1753150306785,0.68,202.98,202.93,11.63380537]
[1753150307293,17.46468397,202.98,202.91,0.59]
[1753150307463,0.68,202.97,202.92,11.63380537]
[1753150308160,16.78468397,202.98,202.92,11.63380537]
[1753150308361,16.78468397,202.98,202.81,11.63380537]
[1753150308362,11.63380537,202.93,202.86,11.63380537]
[1753150308560,11.63380537,202.93,202.83,0.59]
[1753150308561,49.51380537,202.92,202.85,11.63380537]
[1753150308958,11.63380537,202.9,202.82,0.03]
[1753150309160,11.63380537,202.89,202.82,11.66380537]
[1753150309362,49.51380537,202.88,202.82,0.03]
[1753150309598,16.78468397,202.84,202.82,0.03]
[1753150309893,66.29848934,202.83,202.82,0.03]
[1753150310061,66.97848934,202.83,202.82,0.03]
[1753150310267,4.93072333,202.81,202.8,0.03]
[1753150310572,37.32276086,202.81,202.8,1e-08]
[1753150310887,16.78468397,202.77,202.74,0.03]
[1753150311084,28.41848934,202.75,202.74,0.03]
[1753150311496,29.09848934,202.75,202.74,0.03]
[1753150312197,29.09848934,202.75,202.68,11.03009111]
[1753150312198,17.46468397,202.75,202.68,11.03009111]
[1753150312376,16.78468397,202.71,202.65,0.03]
[1753150312575,16.78468397,202.69,202.65,11.66380537]
[1753150313676,16.78468397,202.69,202.66,11.63380537]
[1753150313890,16.78468397,202.69,202.65,11.66380537]
[1753150314096,16.78468397,202.67,202.65,0.03]
[1753150314391,71.23286218,202.66,202.65,0.03]
[1753150314593,71.91286218,202.66,202.65,0.03]
[1753150314984,55.34468397,202.66,202.65,0.03]
[1753150315173,60.27905681,202.66,202.65,0.03]
[1753150315977,71.91286218,202.66,202.65,0.03]
[1753150316181,71.23286218,202.66,202.65,0.03]
[1753150316379,71.91286218,202.66,202.65,0.03]
[1753150316577,34.03286218,202.66,202.65,0.03]
[1753150316779,42.78468397,202.62,202.53,0.2]
[1753150316987,28.41848934,202.6,202.53,0.2]
[1753150317180,16.78468397,202.6,202.53,0.2]
[1753150317494,12.31380537,202.59,202.53,0.2]
[1753150317677,16.78468397,202.57,202.53,0.2]
[1753150319290,16.78468397,202.55,202.53,0.2]
[1753150319492,37.88,202.54,202.53,0.2]
[1753150319684,37.88,202.54,202.53,11.83380537]
[1753150319992,37.88,202.54,202.53,0.2]
[1753150320880,16.78468397,202.63,202.53,17.42128181]
[1753150321083,0.68,202.68,202.62,11.63380537]
[1753150321285,37.88,202.67,202.58,0.65]
[1753150321483,12.31380537,202.66,202.59,11.63380537]
[1753150321988,16.78468397,202.65,202.59,11.63380537]
[1753150322192,16.78468397,202.65,202.62,11.63380537]
[1753150322413,16.78468397,202.66,202.63,11.63380537]
[1753150322701,16.78468397,202.66,202.6,11.63380537]
[1753150322992,0.68,202.65,202.59,11.63380537]
[1753150323206,0.68,202.65,202.54,17.93053717]
[1753150323376,16.78468397,202.63,202.54,17.93053717]
[1753150323576,37.88,202.62,202.59,11.63380537]
[1753150323776,38.56,202.62,202.58,11.63380537]
[1753150324191,38.56,202.62,202.59,11.63380537]
[1753150324601,38.56,202.62,202.58,11.63380537]
[1753150325186,38.56,202.62,202.57,11.63380537]
[1753150325695,16.78468397,202.58,202.53,0.2]
[1753150325998,11.63380537,202.54,202.53,0.2]
[1753150326298,54.64468397,202.54,202.53,0.2]
[1753150326498,37.86,202.54,202.53,16.77134548]
[1753150326691,16.78468397,202.62,202.53,16.77134548]
[1753150326905,54.64468397,202.61,202.6,11.63380537]
[1753150327084,37.86,202.61,202.59,11.63380537]
[1753150327600,37.86,202.61,202.6,11.63380537]
[1753150328301,0.69,202.72,202.6,12.28380537]
[1753150328493,0.69,202.72,202.68,11.63380537]
[1753150328799,37.86,202.71,202.7,11.63380537]
[1753150329185,38.55,202.71,202.65,11.63380537]
[1753150329501,28.41848934,202.7,202.63,11.63380537]
[1753150329682,16.78468397,202.66,202.56,26.0]
[1753150330004,16.78468397,202.64,202.59,11.63380537]
[1753150330403,16.78468397,202.62,202.56,11.63380537]
[1753150330704,37.86,202.61,202.56,11.63380537]
[1753150330889,17.47468397,202.6,202.53,0.2]
[1753150331099,17.47468397,202.6,202.55,11.63380537]
[1753150331416,37.86,202.61,202.57,11.63380537]
[1753150331581,29.10848934,202.6,202.53,11.83380537]
[1753150331783,16.78468397,202.58,202.53,0.2]
[1753150331997,37.84,202.57,202.53,0.2]
[1753150332198,16.78468397,202.56,202.53,0.2]
[1753150332398,17.47468397,202.56,202.53,0.2]
[1753150332700,16.78468397,202.56,202.53,0.2]
[1753150332917,16.78468397,202.56,202.53,11.83380537]
[1753150333721,16.78468397,202.56,202.53,0.2]
[1753150333894,0.69,202.55,202.53,0.2]
[1753150334098,4.93692418,202.56,202.53,0.2]
[1753150334301,16.78468397,202.55,202.53,0.2]
[1753150334503,16.78468397,202.59,202.54,11.63380537]
[1753150334718,1.5248,202.65,202.55,4.93705257]
[1753150334719,37.84,202.58,202.55,4.93705257]
[1753150335018,37.84,202.61,202.57,11.63380537]
[1753150335315,37.84,202.61,202.6,11.63380537]
[1753150335499,0.69,202.64,202.6,11.63380537]
[1753150335703,37.84,202.63,202.55,4.93705257]
[1753150335903,37.84,202.63,202.6,11.63380537]
[1753150335904,38.53,202.63,202.6,11.63380537]
[1753150336203,37.84,202.63,202.61,11.63380537]
[1753150336406,37.84,202.63,202.62,11.63380537]
[1753150336598,37.84,202.63,202.59,11.63380537]
[1753150337005,16.78468397,202.63,202.56,5.58665843]
[1753150337204,37.84,202.62,202.56,5.58665843]
[1753150337426,37.84,202.62,202.59,11.63380537]
[1753150338404,37.84,202.62,202.58,11.63380537]
[1753150338718,37.84,202.61,202.58,11.63380537]
[1753150339499,37.84,202.61,202.59,11.63380537]
[1753150339697,37.84,202.61,202.6,11.63380537]
[1753150339898,37.84,202.61,202.6,17.21963952]
[1753150341725,37.84,202.61,202.6,4.93583415]
[1753150341906,37.84,202.61,202.6,16.56963952]
[1753150342422,37.84,202.61,202.59,11.63380537]
[1753150342931,37.84,202.61,202.54,5.61705575]
[1753150343101,37.84,202.61,202.57,11.63380537]
[1753150344023,37.84,202.61,202.58,11.63380537]
[1753150344527,37.8,202.6,202.58,11.63380537]
[1753150344709,37.8,202.6,202.54,5.61705575]
[1753150345025,16.73532685,202.59,202.55,11.63380537]
[1753150345213,17.42532685,202.59,202.54,0.03]
[1753150345419,16.73532685,202.59,202.54,11.66380537]
[1753150345610,17.42532685,202.59,202.55,11.63380537]
[1753150345811,0.69,202.64,202.58,11.63380537]
[1753150346121,0.69,202.64,202.55,0.65]
[1753150346122,37.8,202.63,202.6,11.63380537]
[1753150346506,38.49,202.63,202.6,11.63380537]
[1753150347207,38.49,202.63,202.59,11.63380537]
[1753150347616,38.49,202.63,202.6,11.63380537]
[1753150348213,37.8,202.63,202.56,4.93680884]
[1753150348412,17.47468397,202.62,202.54,4.96708847]
[1753150348724,16.78468397,202.6,202.54,0.03]
[1753150349030,37.78,202.59,202.54,0.03]
[1753150349204,37.78,202.59,202.54,11.66380537]
[1753150349401,0.69,202.58,202.54,11.66380537]
[1753150349604,0.69,202.57,202.54,11.66380537]
[1753150350014,0.69,202.56,202.54,0.03]
[1753150350213,37.78,202.55,202.54,0.03]
[1753150350936,38.47,202.55,202.54,0.03]
[1753150351225,71.82554191,202.55,202.54,0.03]
[1753150352527,97.82554191,202.55,202.54,0.03]
[1753150354134,60.17173654,202.55,202.54,0.03]
[1753150354435,71.80554191,202.55,202.54,0.03]
[1753150354614,16.78468397,202.54,202.53,0.2]
[1753150354813,29.10848934,202.54,202.53,0.2]
[1753150355841,17.47468397,202.54,202.53,0.2]
[1753150356338,29.10848934,202.54,202.53,0.2]
[1753150356529,34.04578567,202.54,202.53,0.2]
[1753150357534,22.4119803,202.54,202.53,0.2]
[1753150357737,34.04578567,202.54,202.53,0.2]
[1753150358809,22.4119803,202.54,202.53,0.2]
[1753150359735,16.78468397,202.54,202.53,0.2]
[1753150359950,54.54468397,202.54,202.53,0.2]
[1753150360447,60.1519803,202.54,202.53,0.2]
[1753150360608,22.3919803,202.54,202.53,0.2]
[1753150360807,60.1519803,202.54,202.53,0.2]
[1753150361034,60.1519803,202.54,202.53,1e-08]
[1753150361035,68.19612423,202.54,202.53,1e-08]
[1753150361336,42.78468397,202.52,202.51,0.03]
[1753150361626,16.78468397,202.51,202.48,0.03]
[1753150361829,37.74,202.5,202.48,0.03]
[1753150362011,38.41,202.5,202.48,0.03]
[1753150362212,8.71414393,202.49,202.48,0.03]
[1753150362638,13.65265941,202.49,202.48,0.03]
[1753150363036,37.06654338,202.49,202.48,1e-08]
[1753150363237,16.78468397,202.48,202.47,1e-08]
[1753150363420,62.5688279,202.48,202.46,1e-08]
[1753150363730,17.45468397,202.47,202.46,1e-08]
[1753150363932,25.4988279,202.47,202.46,1e-08]
[1753150364116,55.19468397,202.47,202.46,1e-08]
[1753150364317,63.2388279,202.47,202.46,1e-08]
[1753150364730,68.1778312,202.47,202.46,1e-08]
[1753150365631,94.1778312,202.47,202.46,1e-08]
[1753150366527,68.1778312,202.47,202.45,1e-08]
[1753150366850,16.78468397,202.42,202.4,1e-08]
[1753150367034,26.0,202.35,202.28,8.33138893]
[1753150367246,55.19468397,202.34,202.28,0.287245]
[1753150367423,8.04414393,202.32,202.28,0.287245]
[1753150367753,24.8288279,202.3,202.28,0.287245]
[1753150367922,62.5488279,202.29,202.28,0.287245]
[1753150368124,67.18072332,202.29,202.28,0.287245]
[1753150368318,59.13657939,202.29,202.28,0.287245]
[1753150368632,2.43256152,202.3,202.28,0.287245]
[1753150368832,16.78468397,202.34,202.29,8.04414393]
[1753150369046,37.72,202.33,202.3,0.71]
[1753150369253,37.72,202.32,202.29,8.04414393]
[1753150369430,37.72,202.31,202.28,0.287245]
[1753150369632,16.78468397,202.3,202.28,0.287245]
[1753150369840,54.52468397,202.29,202.28,0.287245]
[1753150370141,37.74,202.29,202.28,0.287245]
[1753150370341,37.74,202.29,202.28,8.33138893]
[1753150370550,37.74,202.29,202.28,9.04138893]
[1753150370726,3.09910407,202.38,202.28,13.98502147]
[1753150370922,44.25432777,202.42,202.36,8.04414393]
[1753150371142,37.72,202.41,202.38,8.04414393]
[1753150371349,37.72,202.41,202.34,0.71]
[1753150371646,16.78468397,202.4,202.31,26.71]
[1753150371855,16.78468397,202.38,202.34,8.04414393]
[1753150372140,37.72,202.37,202.34,8.04414393]
[1753150372545,37.72,202.37,202.28,32.83497754]
[1753150372546,37.72,202.37,202.28,31.23087754]
[1753150372743,4.94193229,202.35,202.28,0.287245]
[1753150372948,54.50468397,202.34,202.28,8.33138893]
[1753150373123,16.78468397,202.32,202.28,0.287245]
[1753150373330,16.78468397,202.3,202.28,8.33138893]
[1753150373761,37.72,202.29,202.28,8.33138893]
[1753150374442,16.78468397,202.34,202.28,9.04138893]
[1753150374654,16.78468397,202.32,202.3,8.04414393]
[1753150374850,37.72,202.33,202.31,8.04414393]
[1753150375054,37.72,202.33,202.32,8.04414393]
[1753150375234,37.72,202.33,202.32,11.65926871]
[1753150375842,37.72,202.33,202.28,5.94085191]
[1753150376049,37.72,202.33,202.32,11.65926871]
[1753150376745,37.72,202.33,202.29,0.71]
[1753150377047,37.72,202.33,202.32,11.65926871]
[1753150377251,44.25432777,202.42,202.32,12.36926871]
[1753150377445,44.25432777,202.42,202.38,11.65926871]
[1753150377446,54.48468397,202.41,202.38,11.65926871]
[1753150377633,16.78468397,202.39,202.35,11.65926871]
[1753150377952,16.78468397,202.37,202.33,11.65926871]
[1753150378250,17.45468397,202.37,202.33,11.65926871]
[1753150378752,16.78468397,202.41,202.36,11.65926871]
[1753150378952,16.78468397,202.39,202.36,11.65926871]
[1753150379248,37.7,202.4,202.38,11.65926871]
[1753150379848,37.7,202.4,202.39,11.65926871]
[1753150380630,37.7,202.4,202.35,0.71]
[1753150380832,17.45468397,202.39,202.3,0.71]
[1753150381054,17.45468397,202.39,202.34,11.65926871]
[1753150381256,16.78468397,202.37,202.33,11.65926871]
[1753150381457,37.7,202.36,202.29,4.94339809]
[1753150381662,37.7,202.36,202.32,11.65926871]
[1753150381847,17.45468397,202.35,202.3,11.65926871]
[1753150382039,16.78468397,202.33,202.29,11.65926871]
[1753150382235,16.78468397,202.31,202.28,0.317245]
[1753150382490,16.78468397,202.29,202.28,0.317245]
[1753150382650,54.46468397,202.29,202.28,0.317245]
[1753150382853,60.07808206,202.29,202.28,0.317245]
[1753150383664,37.68,202.29,202.28,0.317245]
[1753150384838,37.68,202.29,202.28,11.97651371]
[1753150385053,16.78468397,202.32,202.28,11.97651371]
[1753150385356,37.68,202.31,202.28,0.317245]
[1753150385581,16.78468397,202.3,202.28,0.317245]
[1753150385745,11.65926871,202.29,202.28,0.317245]
[1753150385955,12.32926871,202.29,202.28,0.317245]
[1753150386357,0.67,202.29,202.28,0.317245]
[1753150386544,12.32926871,202.29,202.28,0.317245]
[1753150386748,66.79395268,202.29,202.28,0.317245]
[1753150387057,55.13468397,202.29,202.28,0.317245]
[1753150387255,71.73735077,202.29,202.28,0.317245]
[1753150388050,71.73735077,202.29,202.23,0.03]
[1753150388051,28.44395268,202.24,202.23,0.03]
[1753150388254,66.12395268,202.24,202.23,0.03]
[1753150388561,66.84395268,202.24,202.23,1e-08]
[1753150388953,71.78857293,202.24,202.23,1e-08]
[1753150391757,26.0,202.21,202.07,0.68]
[1753150391964,16.78468397,202.16,202.12,11.65926871]
[1753150392265,28.44395268,202.14,202.08,11.65926871]
[1753150392564,16.78468397,202.12,202.1,11.65926871]
[1753150392750,37.66,202.11,202.09,11.65926871]
[1753150393061,37.66,202.11,202.0,4.95049504]
[1753150393062,37.66,202.11,202.03,0.68]
[1753150393264,16.78468397,202.1,202.06,11.65926871]
[1753150393446,16.78468397,202.08,202.05,11.65926871]
[1753150393645,37.66,202.07,202.06,11.65926871]
[1753150393856,2.4707966,202.1,202.06,12.33926871]
[1753150394068,2.4707966,202.1,202.09,11.65926871]
[1753150394264,16.78468397,202.09,202.06,0.68]
[1753150394467,37.66,202.08,202.06,11.65926871]
[1753150395055,37.66,202.08,202.07,11.65926871]
[1753150395262,37.66,202.08,202.07,0.68]
[1753150395453,37.66,202.08,202.04,0.68]
[1753150395656,37.66,202.08,202.07,11.65926871]
[1753150395858,37.66,202.08,202.03,17.32415977]
[1753150396055,37.66,202.08,202.04,0.68]
[1753150396474,37.66,202.08,202.07,11.65926871]
[1753150396869,2.42899415,202.1,202.07,12.33926871]
[1753150397065,37.66,202.08,202.06,11.65926871]
[1753150397378,11.65926871,202.12,202.04,0.68]
[1753150397379,37.66,202.07,202.05,8.0788823]
[1753150397580,37.66,202.06,202.05,8.0788823]
[1753150397963,37.66,202.06,202.04,4.94948717]
[1753150398264,37.66,202.06,202.05,8.7588823]
[1753150398677,37.66,202.06,202.05,8.0788823]
[1753150398856,37.66,202.06,202.05,8.7588823]
[1753150399060,19.30680489,202.1,202.05,13.70815228]
[1753150399260,37.66,202.09,202.07,8.0788823]
[1753150399465,37.66,202.09,202.03,8.0788823]
[1753150399466,16.78468397,202.08,202.03,8.0788823]
[1753150399674,16.78468397,202.08,202.02,8.0788823]
[1753150399964,25.58356627,202.08,202.0,5.63026062]
[1753150400171,25.58356627,202.08,202.02,8.0788823]
[1753150400670,16.78468397,202.06,202.0,5.63026062]
[1753150400886,16.78468397,202.04,202.0,0.68]
[1753150401484,37.66,202.05,202.0,8.0788823]
[1753150401690,37.64,202.04,202.01,0.68]
[1753150401872,37.64,202.03,202.02,0.68]
[1753150402065,2.52212092,202.1,202.02,8.7588823]
[1753150402261,37.64,202.09,202.05,8.0788823]
[1753150402461,16.78468397,202.08,202.03,8.0788823]
[1753150402680,37.64,202.09,202.01,8.0788823]
[1753150402885,16.78468397,202.08,202.03,8.0788823]
[1753150403183,16.78468397,202.06,201.99,30.95074013]
[1753150403393,37.64,202.07,202.05,8.0788823]
[1753150403585,37.64,202.07,202.01,0.68]
[1753150403774,37.64,202.07,202.03,8.0788823]
[1753150404168,0.06,202.19,202.06,26.0]
[1753150404364,8.4181,202.33,202.18,26.0]
[1753150404567,2.57724801,202.31,202.3,8.0788823]
[1753150404866,37.64,202.32,202.3,8.0788823]
[1753150405085,37.64,202.31,202.27,0.68]
[1753150405272,37.64,202.31,202.28,0.68]
[1753150405590,0.72,202.36,202.25,5.62435758]
[1753150405770,37.64,202.35,202.25,4.94435758]
[1753150405968,16.3155,202.33,202.05,4.94926998]
[1753150406168,8.0788823,202.28,202.19,8.0788823]
[1753150406489,0.49460876,202.31,202.2,0.68]
[1753150406692,4.94388688,202.27,202.18,8.0788823]
[1753150406892,0.49460876,202.26,202.2,8.0788823]
[1753150407091,38.6,202.25,202.18,8.0788823]
[1753150407391,0.49460876,202.24,202.21,11.6772527]
[1753150407583,37.88,202.25,202.23,11.6772527]
[1753150407786,0.49460876,202.26,202.23,11.6772527]
[1753150408090,38.6,202.29,202.15,38.3572527]
[1753150408091,11.6772527,202.24,202.15,38.3572527]
[1753150408284,11.6772527,202.22,202.15,38.3572527]
[1753150408590,0.49460876,202.21,202.17,11.6772527]
[1753150408792,0.49460876,202.23,202.17,12.3572527]
[1753150408982,38.39460876,202.24,202.17,0.68]
[1753150409177,37.9,202.24,202.2,11.6772527]
[1753150409401,38.37460876,202.28,202.21,0.68]
[1753150409572,38.37460876,202.28,202.23,11.6772527]
[1753150409895,0.49460876,202.27,202.2,0.68]
[1753150410099,0.49460876,202.27,202.21,11.6772527]
[1753150410473,38.37460876,202.28,202.24,11.6772527]
[1753150410681,37.88,202.28,202.25,11.6772527]
[1753150410893,37.88,202.33,202.27,11.6772527]
[1753150411200,37.88,202.33,202.29,11.6772527]
[1753150411372,0.06,202.36,202.32,11.6772527]
[1753150411695,0.06,202.36,202.33,11.6772527]
[1753150412099,0.06,202.36,202.34,11.6772527]
[1753150412395,12.23186146,202.36,202.3,0.68]
[1753150412606,11.6772527,202.35,202.28,11.6772527]
[1753150412772,37.86,202.34,202.29,11.6772527]
[1753150412976,37.86,202.34,202.29,0.68]
[1753150413175,0.06,202.36,202.33,11.6772527]
[1753150413508,0.06,202.36,202.35,11.6772527]
[1753150414203,0.06,202.36,202.35,12.3572527]
[1753150414381,0.06,202.36,202.35,38.3572527]
[1753150414587,0.06,202.36,202.35,26.68]
[1753150414901,0.06,202.36,202.35,17.79337821]
[1753150415273,0.06,202.36,202.35,17.29918499]
[1753150415877,0.06,202.36,202.35,43.29918499]
[1753150416091,0.06,202.36,202.35,17.29918499]
[1753150416694,0.06,202.36,202.35,34.08386896]
[1753150416899,0.2,202.4,202.39,16.78468397]
[1753150417099,0.2,202.4,202.39,35.06473667]
[1753150417399,0.06,202.45,202.42,26.0]
[1753150417709,0.06,202.49,202.47,26.0]
[1753150417887,0.06,202.49,202.48,11.6772527]
[1753150418080,0.06,202.49,202.48,12.3672527]
[1753150418578,0.06,202.49,202.48,66.93193667]
[1753150418780,0.06,202.59,202.52,30.93778392]
[1753150418978,0.06,202.59,202.58,11.6772527]
[1753150419500,0.06,202.59,202.58,12.3672527]
[1753150419678,0.06,202.59,202.52,0.69]
[1753150419879,0.06,202.59,202.57,11.6772527]
[1753150420175,0.06,202.59,202.58,11.6772527]
[1753150420907,0.06,202.59,202.58,17.30357415]
[1753150422277,0.2,202.61,202.59,16.78468397]
[1753150422483,0.06,202.64,202.62,26.0]
[1753150422677,0.06,202.68,202.6,12.17083611]
[1753150422678,0.06,202.68,202.63,37.6772527]
[1753150422994,0.06,202.68,202.67,16.61138207]
[1753150423389,0.06,202.68,202.67,54.98138207]
[1753150423708,0.06,202.68,202.67,71.76606604]
[1753150424008,0.06,202.71,202.7,37.6772527]
[1753150424188,0.06,202.71,202.7,54.46193667]
[1753150424510,0.06,202.75,202.7,48.86059261]
[1753150424681,0.65,202.86,202.74,26.0]
[1753150424881,0.65,202.86,202.79,11.6772527]
[1753150425300,0.59460876,202.87,202.79,17.29846232]
[1753150425301,0.1,202.87,202.79,17.29846232]
[1753150426104,0.1,202.87,202.79,54.93846232]
[1753150426485,0.1,202.87,202.79,71.72314629]
[1753150426690,0.1,202.87,202.82,26.0]
[1753150426892,0.1,202.87,202.79,96.22154401]
[1753150426893,0.1,202.87,202.86,11.6772527]
[1753150427311,0.1,202.87,202.83,0.69]
[1753150427489,0.1,202.87,202.8,5.62096646]
[1753150427684,0.1,202.87,202.85,11.6772527]
[1753150427887,0.1,202.87,202.83,11.6772527]
[1753150428294,0.75,202.87,202.83,11.6772527]
[1753150428806,1.14460876,202.86,202.8,11.6772527]
[1753150428981,0.1,202.87,202.83,11.6772527]
[1753150429183,0.1,202.87,202.8,26.0]
[1753150429383,0.1,202.87,202.82,11.6772527]
[1753150429586,0.75,202.87,202.82,11.6772527]
[1753150430013,0.65,202.86,202.83,11.6772527]
[1753150431013,0.65,202.85,202.79,11.6772527]
[1753150431184,0.49460876,202.84,202.79,11.6772527]
[1753150431386,0.65,202.83,202.77,11.6772527]
[1753150431713,37.64,202.87,202.82,11.6772527]
[1753150431884,37.64,202.87,202.78,0.69]
[1753150431885,0.1,202.87,202.84,11.6772527]